Cogmind - Beta 15 @@@ ROGUE MODE // 2025.05.08 @ 17:30:57 Player: Ordine Result: Self-destructed Performance ------------- Evolutions (1) 500 Regions Visited (2) 400 Robots Destroyed (16) 80 Value Destroyed (264) 264 Prototype IDs (0) 0 Alien Tech Used (0) 0 Bonus (0) 0 TOTAL SCORE: 1244 Bonus ------- None Cogmind --------- Core Integrity 331/400 Matter 2/300 Energy 250/250 System Corruption 0% Temperature Cool (0) Movement Treading (160) Location -9/Materials Parts ------- > --- POWER (1) -------- Ion Engine > --- PROPULSION (3) --- Light Treads > --- UTILITY (3) ------ Small Storage Unit Sensor Array Signal Interpreter > --- WEAPON (2) ------- Assault Rifle Grenade Launcher > --- INVENTORY (8) ---- Light Ion Engine Improved Heat Sink Assault Rifle Mining Claw Peak State ------------ > --- POWER ------------ Ion Engine > --- PROPULSION ------- Light Treads Light Treads > --- UTILITY ---------- Small Storage Unit Sensor Array Signal Interpreter > --- WEAPON ----------- Assault Rifle Assault Rifle > --- INVENTORY -------- Light Ion Engine Improved Heat Sink Grenade Launcher Mining Claw [Rating: 8] Favorites ----------- Power Ion Engine Engine Ion Engine Propulsion Light Treads Treads Light Treads Utility Small Storage Unit Device Sensor Array Storage Small Storage Unit Processor Signal Interpreter Weapon Assault Rifle Ballistic Gun Assault Rifle Launcher Grenade Launcher Build | -11 -10 -9 ------- Run | Yrd Mat Mat Slots Evolved 2 | . . 2 Power . | . . . Propulsion 1 | . . 1 Utility 1 | . . 1 Weapon . | . . . Parts Attached 10 | 6 2 2 Power 1 | 1 . . Engine 1 | 1 . . Core . | . . . Reactor . | . . . Propulsion 2 | 2 . . Treads 2 | 2 . . Leg . | . . . Wheel . | . . . Hover . | . . . Flight . | . . . Utility 3 | 1 1 1 Device 1 | . . 1 Storage 1 | 1 . . Processor 1 | . 1 . Hackware . | . . . Protection . | . . . Artifact . | . . . Weapon 4 | 2 1 1 Energy Gun . | . . . Energy Cannon . | . . . Ballistic Gun 3 | 2 1 . Ballistic Cannon . | . . . Launcher 1 | . . 1 Special Weapon . | . . . Impact Weapon . | . . . Slashing Weapon . | . . . Piercing Weapon . | . . . Special Melee Weapon . | . . . Unidentified Prototypes . | . . . Parts Lost 1 | . . 1 Power . | . . . Propulsion 1 | . . 1 Utility . | . . . Weapon . | . . . Highest Loss Streak 1 | . . 1 To Critical Strikes . | . . . Average Backups 3 | . 4 4 Power . | . 1 1 Propulsion . | . . . Utility 1 | . 1 1 Weapon 1 | . 1 2 Tool/Special . | . . . Unused Backups 3 | . . 3 Power 1 | . . 1 Propulsion . | . . . Utility 1 | . . 1 Weapon 1 | . . 1 Tool/Special . | . . . Average Slot Usage (%) 87 | . 86 88 Engine 12 | . 14 11 Treads 25 | . 28 22 Device 3 | . . 11 Storage 12 | . 14 11 Processor 4 | . 1 11 Ballistic Gun 23 | . 28 16 Launcher 2 | . . 6 Peak Build Rating 8 | 6 7 8 Average Rating 6 | 4 6 7 On Entrance 4 | . 6 7 Naked Turns . | . . . Heaviest Build 16 | 13 14 16 Greatest Support 40 | 40 40 40 Greatest Overweight (x) . | . . . Average Overweight (x) . | . . . Largest Inventory Capacity 8 | 8 8 8 Average Capacity 7 | 7 8 8 Most Carried 6 | 1 6 4 Average Carried 3 | . 4 4 Final Capacity 8 | 8 8 8 Final Carried 5 | 1 5 4 Class Distribution -------------------- 100% | Mutant Dominant Class ---------------- Mutant | -10/Materials Mutant | -9/Materials Resources | -11 -10 -9 ----------- Run | Yrd Mat Mat Matter Collected 279 | 218 46 15 Remotely . | . . . Salvage Created 202 | . 35 167 Parts 34 | . 3 31 Haulers Intercepted 2 | . . 2 Recyclers Shooed . | . . . Parts Field Recycled . | . . . Retrieved Matter . | . . . Parts Self-Destructed . | . . . Prevented . | . . . Kills | -11 -10 -9 ------- Run | Yrd Mat Mat Combat Hostiles Destroyed 8 | . 1 7 Guns 1 | . 1 . AOE 7 | . . 7 Classes Destroyed 7 | . 1 6 Builder 4 | . . 4 Tunneler 1 | . . 1 Hauler 2 | . . 2 Watcher 1 | . . 1 Swarmer 4 | . . 4 Grunt 3 | . 1 2 Sentry 1 | . . 1 Best Kill Streak 11 | . 1 11 Combat Bots Only 7 | . 1 7 Max Kills in Single Turn 5 | . 1 5 Gunslinging . | . . . Exploded 4 | . . 4 Melee . | . . . Uniques/NPCs Destroyed . | . . . Combat | -11 -10 -9 -------- Run | Yrd Mat Mat Hostile Shots Fired 31 | . 5 26 Missed 11 | . 1 10 Hits 20 | . 4 16 Projectile 20 | . 4 16 Damage Taken 478 | . 69 409 Core 69 | . . 69 Absorbed by Shields . | . . . Core Remaining (%) 100 | 100 100 . Volleys Fired 31 | . 3 28 Largest 2 | . 2 2 Hottest 40 | . 40 40 Shots Fired 37 | . 6 31 Gun 12 | . 6 6 Cannon . | . . . Launcher 25 | . . 25 Special . | . . . Kinetic 12 | . 6 6 Thermal . | . . . Explosive 25 | . . 25 Electromagnetic . | . . . Robot Hit Streak 5 | . 2 5 Robot Miss Streak 5 | . 4 5 Penetration Max . | . . . Secondary Targets . | . . . Shots Hit Robots 22 | . 2 20 Core Hits 26 | . 2 24 Critical Kills . | . . . Critical Parts Destroyed . | . . . Critical Strikes . | . . . Melee Attacks . | . . . Impact . | . . . Slashing . | . . . Piercing . | . . . Sneak Attacks . | . . . Combat Hostiles . | . . . Follow-up Attacks . | . . . Damage Inflicted 1241 | . 22 1219 Guns 74 | . 22 52 Cannons . | . . . Explosions 1167 | . . 1167 Melee . | . . . Ramming . | . . . Kinetic 74 | . 22 52 Thermal 169 | . . 169 Explosive 998 | . . 998 Electromagnetic . | . . . Impact . | . . . Slashing . | . . . Piercing . | . . . Highest Corruption . | . . . Average Corruption . | . . . Corruption Purged . | . . . Corruption Blocked . | . . . Overload Shots . | . . . Overflow Damage 40 | . . 40 Projectiles . | . . . Explosions 40 | . . 40 Melee . | . . . Knockbacks . | . . . Impact . | . . . Kinetic . | . . . Secondary . | . . . Self-Inflicted Damage 204 | . . 204 Shots 7 | . . 7 Rammed . | . . . Targets Rammed . | . . . Kicked . | . . . Crushed . | . . . Highest Temperature 1 | . . 1 Average Temperature 1 | . . 1 Received Heat Transfer 99 | . 24 75 Siege Activations . | . . . Martial Activations . | . . . Shielding Activations . | . . . Robots Disrupted . | . . . Combat Hostiles . | . . . Robots Corrupted . | . . . Combat Hostiles . | . . . Parts Fried . | . . . Impact Corruptions . | . . . Robots Melted . | . . . Combat Hostiles . | . . . Parts Melted . | . . . Heat Transferred 100 | . . 100 Parts Sabotaged . | . . . Parts Stolen . | . . . Parts Stripped . | . . . Power Chain Reactions . | . . . Alert | -11 -10 -9 ------- Run | Yrd Mat Mat Maximum Alert Level 1 | . . 1 Low Security (%) 83 | 100 100 50 Level 1 16 | . . 49 Level 2 . | . . . Level 3 . | . . . Level 4 . | . . . Level 5 . | . . . High Security . | . . . Max Security . | . . . Peak Influence 340 | . 20 340 Initial . | . . . Average 52 | . . 157 Influence Increases 433 | . 20 413 Destroy 0b10 Robot/C 160 | . 20 140 Destroy 0b10 Robot/NC 40 | . . 40 Destroy Leader 36 | . . 36 Successful Hack 7 | . . 7 Disable Machine 45 | . . 45 Destroy Structure 130 | . . 130 Partial Spotted 15 | . . 15 Influence Decreases 98 | . 20 78 Time Decay 88 | . 20 68 Lost Part 10 | . . 10 Squads Dispatched 1 | . . 1 Investigation 1 | . . 1 Extermination . | . . . Reinforcement . | . . . Assault . | . . . Garrison . | . . . Intercept . | . . . Searches Triggered . | . . . Construction Impeded . | . . . Haulers Reinforced . | . . . Active Scanning Responses . | . . . Cargo Convoy Interrupts . | . . . Stealth | -11 -10 -9 --------- Run | Yrd Mat Mat Distress Signals 3 | . 1 2 Communications Jammed . | . . . Distress Signals . | . . . Times Spotted 17 | . 4 13 Peak Tracking Total 8 | . 2 8 Tactical Retreats . | . . . Traps | -11 -10 -9 ------- Run | Yrd Mat Mat Traps Triggered 2 | . 1 1 Indirectly . | . . . Trap Hack Attempts . | . . . Triggered . | . . . Disarmed . | . . . Reprogrammed . | . . . Reused . | . . . Traps Extracted . | . . . Installed . | . . . Triggered . | . . . Machines | -11 -10 -9 ---------- Run | Yrd Mat Mat Machines Disabled 3 | . . 3 Max in Single Turn 3 | . . 3 Machines Repaired . | . . . Machines Dismantled . | . . . Machines Sabotaged . | . . . Overloaded Fab Kills . | . . . Hacking | -11 -10 -9 --------- Run | Yrd Mat Mat Machines Accessed 2 | . 1 1 Terminals 2 | . 1 1 Fabricators . | . . . Repair Stations . | . . . Recycling Units . | . . . Scanalyzers . | . . . Garrison Access . | . . . Total Hacks 7 | . 4 3 Successful 2 | . 1 1 Failed 5 | . 3 2 Catastrophic . | . . . Database Lockouts . | . . . Manual . | . . . Terminals 7 | . 4 3 Fabricators . | . . . Repair Stations . | . . . Recycling Units . | . . . Scanalyzers . | . . . Garrison Access . | . . . Terminal Hacks 2 | . 1 1 Locate Traps 1 | . 1 . Registered Components 1 | . . 1 Fabricator Hacks . | . . . Repair Station Hacks . | . . . Recycling Unit Hacks . | . . . Scanalyzer . | . . . Garrison Access Hacks . | . . . Unauthorized Hacks . | . . . Terminals . | . . . Fabricators . | . . . Repair Stations . | . . . Recycling Units . | . . . Scanalyzers . | . . . Garrison Access . | . . . Data Cores Recovered . | . . . Used . | . . . Hacking Detections 2 | . 1 1 Full Trace Events . | . . . Feedback Events . | . . . Feedback Blocked . | . . . Robot Schematics Acquired . | . . . Robots Built . | . . . Authchips . | . . . Time . | . . . Total Robot Build Rating . | . . . Part Schematics Acquired . | . . . Parts Built . | . . . Authchips . | . . . Time . | . . . Total Part Build Rating . | . . . Parts Repaired . | . . . Time . | . . . Parts Recycled . | . . . Recycled Matter . | . . . Retrieved Matter . | . . . Retrieved Components . | . . . Parts Scanalyzed . | . . . Part Schematics Acquired . | . . . Parts Damaged . | . . . Bothacking | -11 -10 -9 ------------ Run | Yrd Mat Mat Used RIF Installer . | . . . Robots Hacked . | . . . Non-combat . | . . . Combat . | . . . Robot Hacks Applied . | . . . Relay Couplers Released . | . . . Fabnet Peak Effective % . | . . . Robots Rewired . | . . . Allies Hacked . | . . . Hacks Repelled . | . . . Allies | -11 -10 -9 -------- Run | Yrd Mat Mat Total Allies . | . . . Largest Group . | . . . Highest-Rated Group . | . . . Highest-Rated Ally . | . . . Total Orders . | . . . Ally Attacks . | . . . Total Damage . | . . . Kills . | . . . Allies Corrupted . | . . . Allies Melted . | . . . Intel | -11 -10 -9 ------- Run | Yrd Mat Mat Active Infowar (turns) 215 | . . 215 Sensors 215 | . . 215 Robot Analysis Total . | . . . Derelict Logs Recovered . | . . . Drone Launches . | . . . Drone Recoveries . | . . . Exploration | -11 -10 -9 ------------- Run | Yrd Mat Mat Turns Passed 648 | 56 377 215 Spaces Moved 336 | 32 224 80 Core 4 | 4 . . Treads 332 | 28 224 80 Legs . | . . . Wheels . | . . . Hover . | . . . Flight . | . . . Fastest Speed 50 | 50 160 160 Average Speed 158 | 146 160 160 Slowest Speed 160 | 160 160 160 Overloaded Moves . | . . . Propulsion Burnouts . | . . . Robots Hopped . | . . . Potential Cave-ins . | . . . Cave-ins Triggered . | . . . Exploration Rate (%) 22 | 3 46 19 Regions Visited 2 Branch Regions . Pre-discovered Areas . | . . . Known Exits Taken 1 | . 1 . Unknown Exits Taken 1 | 1 . . Scrap Searched . | . . . Spaces Dug . | . . . Terrain Destroyed 164 | . . 164 Melee . | . . . Projectile . | . . . AOE 164 | . . 164 Terrain Rammed . | . . . Walls Destroyed . | . . . Machines Disabled . | . . . Actions | -11 -10 -9 --------- Run | Yrd Mat Mat Total 410 | 38 237 135 Wait 28 | . 3 25 Move 334 | 31 223 80 Hop . | . . . Pick Up 6 | 1 5 . Fast Attach 6 | 6 . . Attach 2 | . 1 1 Detach . | . . . Swap 2 | . 1 1 Drop 1 | . 1 . Fire 31 | . 3 28 Melee . | . . . Ram . | . . . Kick . | . . . Crush . | . . . Escape Stasis . | . . . Rewire . | . . . Trap . | . . . Miscellaneous . | . . . Route ------- -11/Scrapyard -10/Materials (discovered 2 exits: *Mat / [*Sub]) -9/Materials History --------- Turn | Location | Event 10 | -11/Scrapyard | Discovered new exit (range 15) 57 | -11/Scrapyard | Entered Materials 58 | -10/Materials | Met a group of wandering Federalists 163 | -10/Materials | Discovered new exit (range 5) 314 | -10/Materials | Build established: Mutant 391 | -10/Materials | Discovered new exit (range 7) 400 | -10/Materials | Identified exit to Materials 434 | -10/Materials | Entered another Materials area 434 | -9/Materials | Evolved 2 slots: Propulsion x1, Utility x1 575 | -9/Materials | Destroyed 7 combat bots 649 | -9/Materials | Self-destructed Last Messages --------------- 00634_ K-01 Serf collects debris. 00635_ U-05 Engineer lays Concrete. 00636_ K-01 Serf cleans the Electrolysis Chamber. 00638_ K-01 Serf collects debris. 00638_ U-05 Engineer lays Concrete. 00640_ U-05 Engineer destroyed. 00640_ U-05 Engineer builds a Wall. 00640_ Electrolysis Chamber disabled. 00641_ W-16 Scout sends out distress signal. 00642_ R-06 Scavenger collects Prototype Ballistic Gun. 00643_ K-01 Serf collects debris. 00643_ Lgt. Treads destroyed. 00644_ The unstable cave ceiling collapses. 00644_ U-05 Engineer destroyed. 00646_ R-06 Scavenger collects Prototype Energy Cannon. 00648_ The unstable cave ceiling collapses. 00648_ K-01 Serf collects debris. Map ----- +----------------------------------------------------+ | ??????????????????????????????????# """ # | | ??????????????????????????????????# # | | ??????????????????????????????????# + | | ??????????????????????????????????######### ##### | | ??????????????????????????????????????#####+##### | | ??????????????????????????????????????# # | | ??????????????????????????????????????# # | | ??????????????????????????????????!???# " # | | ??????????????????????????????????????# # | | ??????????????????????????????????????# " # | | ??????????????????????????????????????# """ # | | ??????????????????????????????????????# "" # | | ?????????????????????????????######???# % # | | ?????????????????????????????# T #???####### * #= | | ?????????????????????????????# #??????# =!|% | | ??!??????????????????##?###### ######## [ % | | ?????????????????????# ## # ! # **%= | | ?????????????????????# """ ## # # #[ | | ?????????????????????# """w ## #""" ! # | | ?????????????????????# "" ## #""" # | | ?????????????????????# ## #""" ## | | ??????????? ?????????# ## r | | ??????????? ######## #### # # | | ?????????? Y | | ?????????? !| kr ##### # | | ??????????# !%*@ != [[ #?# | | ???????????# #### # | | ???????????# ?????#!!! m # | | ??????????????????????#|! Y # ### | | ??????????????????????#|! ######?#" | | ??????????????????????# % ????#" | | ??????????????????????# ##???#" "# | | ??????????????????????#"S # #???#" "# | | ??????????????????????#""" #???## "# | | ??????????????????????# "" #????#"""""""""# | | ??????????????????????# #????#### ##### | | ???????????????!????????# ###????????###???? | | ????????????????????????## ????????????????? | | ?????????????????????????##### ##????????????????? | | ??????????????????????????????##?????????????????? | | ?????????????????????????????????????????????????? | | ?????????????????????????????????????????????????? | | ?????????????????????????????????????????????????? | | ?????????????????????????????????????????????????? | | ?????????????????????????????????????????????????? | | ?????????????????????????????????????????????????? | | ?????????????????????????????????????????????????? | | ?????????????????????????????????????????????????? | | ?????????????????????????????????????????????????? | | ?????????????????????????????????????????????????? | +----------------------------------------------------+ Best States ------------- Heat Dissipation 28 Energy Generation 10 Energy Capacity 250 Matter Stores 300 Matter Capacity 300 Sight Range 16 Robot Scan Range 14 Terrain Scan Density 10 Evasion (%) 40 Recoil Reduction 2 Item Schematics ----------------- None Robot Schematics ------------------ None Fabricated ------------ Nothing Repaired ---------- Nothing Alien Tech Used ----------------- None Achievements -------------- None Challenges ------------ None Game ------ Seed TransportPortableBoregun Manual? 0 Play Time 00:07:29 Cumulative 21.3 hours Start 2025.05.08 @ 17:24:22 End 2025.05.08 @ 17:30:57 Sessions 1 Manual Loads 0 Difficulty Rogue Special Mode None Game No. 21 Rogue 21 Adventurer 0 Explorer 0 Win Type - Total 1 Types 1/0/0/0/0/0/0/0/0/0 Lore% 15 Gallery% 18 Achievement% 24 Wizard Run 0 Options --------- Layout 1 ASCII 0 Keyboard 0 Movement Mouse Keybinds 0 Fullscreen 1 Font 32/SmallcapsGlow Map View 50x35 Zoom Use 0% Tactical HUD 1 Map Filters NONE Filters NONE Steam 1 RUN: a3970db3-c0e2-4675-99e6-d040109d1033